bitfinex-derivatives/quotes_BTCF0:USTF0_20250308
["timestamp","ask_amount","ask_price","bid_price","bid_amount"]
[1741462184089,0.10834,86358.0,86357.0,0.0926646]
[1741462184691,0.10842,86358.0,86357.0,0.0926646]
[1741462185197,0.00012,86358.0,86357.0,0.0926646]
[1741462185594,0.10802,86358.0,86357.0,0.0926646]
[1741462185794,0.1079,86358.0,86357.0,0.0926646]
[1741462186896,0.10798,86358.0,86357.0,0.0926646]
[1741462187100,0.10798,86358.0,86355.0,0.9321]
[1741462187396,0.10798,86358.0,86355.0,0.9305]
[1741462187698,0.10798,86358.0,86355.0,0.7216]
[1741462187699,0.0926657,86356.0,86355.0,0.7216]
[1741462187899,0.0926657,86356.0,86355.0,0.3608]
[1741462188197,0.21101325,86356.0,86355.0,0.3608]
[1741462188799,0.12990074,86356.0,86355.0,0.3608]
[1741462189099,0.21074074,86356.0,86355.0,0.3608]
[1741462189690,0.21078074,86356.0,86355.0,0.3608]
[1741462189893,0.09267,86352.0,86351.0,0.34418318]
[1741462190505,0.09861755,86352.0,86351.0,0.34418318]
[1741462190701,0.09865755,86352.0,86351.0,0.34418318]
[1741462190892,0.09765755,86352.0,86351.0,0.34418318]
[1741462191095,0.09765755,86352.0,86347.0,0.00017378]
[1741462191096,0.0926742,86348.0,86347.0,0.00017378]
[1741462191410,0.0926742,86348.0,86347.0,0.09284908]
[1741462191793,0.10874436,86348.0,86347.0,0.09284908]
[1741462192301,0.20430175,86348.0,86347.0,0.09284908]
[1741462192607,0.20422175,86348.0,86347.0,0.00017378]
[1741462192908,0.20222175,86348.0,86347.0,0.09284908]
[1741462193299,0.20222175,86348.0,86347.0,0.00017378]
[1741462193700,0.20230175,86348.0,86347.0,0.00117378]
[1741462193901,0.20230175,86348.0,86347.0,0.00217378]
[1741462194503,0.20330175,86348.0,86347.0,0.00017378]
[1741462196411,0.20430175,86348.0,86347.0,0.00017378]
[1741462197807,0.20530175,86348.0,86347.0,0.00017378]
[1741462199214,0.20430175,86348.0,86347.0,0.00017378]
[1741462199416,0.20330175,86348.0,86347.0,0.00017378]
[1741462200606,0.20330175,86348.0,86345.0,0.3608]
[1741462200803,0.0926764,86346.0,86345.0,0.3608]
[1741462201310,0.31392395,86346.0,86345.0,0.3608]
[1741462202313,0.31392395,86346.0,86345.0,0.4534775]
[1741462202625,0.20632395,86346.0,86345.0,0.4544775]
[1741462203224,0.20632395,86346.0,86345.0,0.6703775]
[1741462203519,4e-05,86347.0,86346.0,0.0926764]
[1741462203713,0.001,86348.0,86347.0,0.0926753]
[1741462203909,0.001,86348.0,86347.0,0.4534753]
[1741462204114,0.001,86348.0,86347.0,0.6695753]
[1741462204715,4e-05,86350.0,86349.0,0.0926732]
[1741462205317,4e-05,86350.0,86349.0,0.3087732]
[1741462206218,1.6039152,86359.0,86349.0,0.3661]
[1741462206519,4e-05,86366.0,86361.0,0.0463297]
[1741462206720,0.2061181,86375.0,86368.0,0.0926528]
[1741462206916,4e-05,86372.0,86368.0,0.0926528]
[1741462207213,4e-05,86372.0,86371.0,0.0926496]
[1741462207803,0.00012,86372.0,86371.0,0.0926496]
[1741462208814,0.10567626,86376.0,86371.0,0.03507128]
[1741462209010,0.10393888,86376.0,86375.0,0.4534453]
[1741462209211,0.10393888,86376.0,86375.0,0.5340853]
[1741462209608,0.10393888,86376.0,86375.0,0.6840853]
[1741462210215,0.05819888,86376.0,86375.0,0.6840853]
[1741462210820,0.05919888,86376.0,86375.0,0.6850853]
[1741462211010,0.4855,86383.0,86382.0,0.0926378]
[1741462211212,0.4855,86383.0,86382.0,0.4534378]
[1741462211412,0.4855,86383.0,86382.0,0.6034378]
[1741462211616,0.4855,86383.0,86382.0,0.4534378]
[1741462211922,0.4855,86383.0,86382.0,0.8974778]
[1741462212109,0.42580644,86383.0,86382.0,0.8974778]
[1741462213215,0.42580644,86383.0,86382.0,0.8984778]
[1741462213618,0.42588644,86383.0,86382.0,0.8984778]
[1741462213816,0.42588644,86383.0,86382.0,0.8994778]
[1741462214923,0.42588644,86383.0,86382.0,0.7494778]
[1741462216425,0.42588644,86383.0,86382.0,0.6686378]
[1741462216630,0.42588644,86383.0,86382.0,0.7493578]
[1741462217520,0.42588644,86383.0,86382.0,0.6686378]
[1741462218517,0.31717854,86383.0,86382.0,0.6686378]
[1741462218720,0.31709854,86383.0,86382.0,0.6686378]
[1741462219730,0.31717854,86383.0,86382.0,0.6686378]
[1741462221323,0.30574823,86383.0,86382.0,0.6686378]
[1741462221633,0.09722897,86383.0,86382.0,0.6686378]
[1741462222528,0.03437897,86383.0,86382.0,0.6736378]
[1741462222723,8e-05,86383.0,86382.0,0.7259563]
[1741462223421,0.1088,86399.0,86382.0,0.587]
[1741462223623,0.1088,86399.0,86392.0,0.453427]
[1741462224025,4e-05,86395.0,86392.0,0.453427]
[1741462224427,0.2111,86394.0,86392.0,0.667227]
[1741462224932,4e-05,86395.0,86392.0,0.667227]
[1741462225318,4e-05,86395.0,86392.0,0.670227]
[1741462225719,0.1038,86398.0,86392.0,0.670227]
[1741462225924,0.10334,86395.0,86392.0,0.667227]
[1741462226123,0.10334,86395.0,86392.0,0.670227]
[1741462226523,0.1038,86394.0,86392.0,0.670227]
[1741462226724,0.50008,86393.0,86392.0,0.670227]
[1741462226925,0.36024338,86393.0,86392.0,0.3638]
[1741462227226,0.36024338,86393.0,86392.0,0.456427]
[1741462227433,0.36024338,86393.0,86392.0,0.459427]
[1741462227633,0.36024338,86393.0,86392.0,0.3668]
[1741462228134,0.36024338,86393.0,86392.0,0.456427]
[1741462228329,0.36024338,86393.0,86392.0,0.565527]
[1741462228530,0.36024338,86393.0,86392.0,0.671927]
[1741462228727,0.36032338,86393.0,86392.0,0.671927]
[1741462229127,0.36032338,86393.0,86392.0,0.559827]
[1741462229925,0.36032338,86393.0,86392.0,0.671927]
[1741462230132,0.36032338,86393.0,86392.0,0.673927]
[1741462230736,0.36016338,86393.0,86392.0,0.673927]
[1741462231434,0.36016338,86393.0,86392.0,0.674927]
[1741462231630,0.36024338,86393.0,86392.0,0.674927]
[1741462231938,0.36024338,86393.0,86392.0,0.454427]
[1741462232439,0.36024338,86393.0,86392.0,0.455427]
[1741462233137,0.36024338,86393.0,86392.0,0.3618]
[1741462233738,0.36032338,86393.0,86392.0,0.3618]
[1741462234039,0.45294938,86393.0,86392.0,0.3618]
[1741462234240,0.45294938,86393.0,86392.0,0.3608]
[1741462234863,0.45298938,86393.0,86392.0,0.3608]
[1741462235741,0.36036338,86393.0,86392.0,0.453427]
[1741462236045,0.36036338,86393.0,86392.0,0.3608]
[1741462236352,0.45298938,86393.0,86392.0,0.3608]
[1741462236545,0.55448938,86393.0,86392.0,0.3608]
[1741462236748,0.55456938,86393.0,86392.0,0.3608]
[1741462237148,0.56082216,86393.0,86392.0,0.3608]
[1741462237638,0.55456938,86393.0,86392.0,0.3608]
[1741462238735,0.55460938,86393.0,86392.0,0.63382652]
[1741462238945,0.46198338,86393.0,86392.0,0.72645352]
[1741462239142,0.55460938,86393.0,86392.0,0.72645352]
[1741462239340,0.56059864,86393.0,86392.0,0.72645352]
[1741462239837,0.56293516,86393.0,86392.0,0.63382652]
[1741462241543,0.56428715,86393.0,86392.0,0.63382652]
[1741462242229,0.47166115,86393.0,86392.0,0.63382652]
[1741462242536,0.47166115,86393.0,86392.0,0.72645352]
[1741462242739,0.56523914,86393.0,86392.0,0.63382652]
[1741462243440,0.56523914,86393.0,86392.0,0.3608]
[1741462243629,0.56527914,86393.0,86392.0,0.453427]
[1741462243832,0.26785314,86393.0,86392.0,0.453427]
[1741462244031,0.15266353,86393.0,86392.0,0.81859624]
[1741462244242,0.14667427,86393.0,86392.0,0.771827]
[1741462244633,0.14663427,86393.0,86392.0,0.771827]
[1741462244832,0.25923427,86393.0,86392.0,0.771827]
[1741462245643,0.14671427,86393.0,86392.0,0.771827]
[1741462246344,0.14671427,86393.0,86392.0,0.772827]
[1741462246838,0.14671427,86393.0,86392.0,0.6802]
[1741462247040,0.25521427,86393.0,86392.0,0.469]
[1741462247243,0.34784027,86393.0,86392.0,0.472]
[1741462247436,0.25521427,86393.0,86392.0,0.472]
[1741462247744,0.25525427,86393.0,86392.0,0.84254641]
[1741462248134,0.25525427,86393.0,86392.0,1.04107341]
[1741462248537,0.35685427,86393.0,86392.0,1.04107341]
[1741462248941,0.14683427,86393.0,86392.0,1.15257341]
[1741462249349,0.14683427,86393.0,86392.0,1.15157341]
[1741462250036,0.14683427,86393.0,86392.0,1.15257341]
[1741462250440,0.14683427,86393.0,86392.0,1.15157341]
[1741462250647,0.24863427,86393.0,86392.0,1.15257341]
[1741462250845,0.24843427,86393.0,86392.0,1.15257341]
[1741462251446,0.24843427,86393.0,86392.0,1.04107341]
[1741462251741,0.06536056,86393.0,86392.0,1.04107341]
[1741462251936,0.06540056,86393.0,86392.0,1.04107341]
[1741462252343,4e-05,86393.0,86392.0,1.04107341]
[1741462252740,0.1082,86399.0,86398.0,0.0926206]
[1741462253760,0.10828,86399.0,86398.0,0.3127206]
[1741462254859,0.21368,86399.0,86398.0,0.3127206]
[1741462255851,0.21972596,86399.0,86398.0,0.3127206]
[1741462257945,0.21972596,86399.0,86398.0,0.58784531]
[1741462258348,0.11152596,86399.0,86398.0,0.58784531]
[1741462259250,0.21802596,86399.0,86398.0,0.58784531]
[1741462259755,0.21198,86399.0,86398.0,0.58784531]
[1741462260140,8e-05,86399.0,86398.0,0.58784531]
[1741462260555,8e-05,86399.0,86398.0,0.94864531]
[1741462260758,0.1038,86403.0,86399.0,0.0926195]
[1741462260949,0.10004,86400.0,86399.0,0.0926195]
[1741462261255,0.10004,86400.0,86399.0,0.3133195]
[1741462261552,0.10004,86400.0,86399.0,0.6741195]
[1741462262656,0.10012,86400.0,86399.0,0.6741195]
[1741462264259,0.10012,86400.0,86399.0,0.70481405]
[1741462266753,0.1927385,86400.0,86399.0,0.61219455]
[1741462267354,0.4092385,86400.0,86399.0,0.61219455]
[1741462267753,0.4092785,86400.0,86399.0,0.61219455]
[1741462268758,0.4093585,86400.0,86399.0,0.61219455]
[1741462270461,0.4093585,86400.0,86399.0,0.39149455]
[1741462270655,0.4093985,86400.0,86399.0,0.39149455]
[1741462271761,0.4094785,86400.0,86399.0,0.39149455]
[1741462272156,0.41536234,86400.0,86399.0,0.39149455]
[1741462272759,0.41540234,86400.0,86399.0,0.39149455]
[1741462272958,0.32278384,86400.0,86399.0,0.48411405]
[1741462273154,0.32278384,86400.0,86399.0,0.70751405]
[1741462273767,0.32238384,86400.0,86399.0,0.61489455]
[1741462273967,0.41500234,86400.0,86399.0,0.70751405]
[1741462274653,0.41508234,86400.0,86399.0,0.70751405]
[1741462275058,0.41508234,86400.0,86399.0,0.61489455]
[1741462275962,0.4091985,86400.0,86399.0,0.61489455]
[1741462276868,0.4091985,86400.0,86399.0,0.89048435]
[1741462277455,0.41055085,86400.0,86399.0,0.89048435]
[1741462278565,0.4119032,86400.0,86399.0,0.89048435]
[1741462280858,0.4119032,86400.0,86399.0,0.98310385]
[1741462281061,0.4119032,86400.0,86399.0,0.70751405]
[1741462281572,0.3192847,86400.0,86399.0,0.70751405]
[1741462281772,0.4119032,86400.0,86399.0,0.61489455]
[1741462282069,0.41767904,86400.0,86399.0,0.39149455]
[1741462282773,0.41767904,86400.0,86399.0,0.49919455]
[1741462283168,0.41767904,86400.0,86399.0,0.61429455]
[1741462285370,0.41767904,86400.0,86399.0,0.70691405]
[1741462286468,0.41767904,86400.0,86399.0,0.61429455]
[1741462287076,0.32506054,86400.0,86399.0,0.70691405]
[1741462287666,0.32498054,86400.0,86399.0,0.70691405]
[1741462288677,0.32506054,86400.0,86399.0,0.70691405]
[1741462288864,0.10856054,86400.0,86399.0,0.70691405]
[1741462289268,0.22126054,86400.0,86399.0,0.70691405]
[1741462289573,0.33376054,86400.0,86399.0,0.70691405]
[1741462289776,0.33376054,86400.0,86399.0,0.98249644]
[1741462290173,0.3279847,86400.0,86399.0,0.98249644]
[1741462290379,0.4206032,86400.0,86399.0,0.88987694]
[1741462290976,0.5331032,86400.0,86399.0,0.66707694]
[1741462291979,0.5331032,86400.0,86399.0,0.66807694]
[1741462292981,0.53895601,86400.0,86399.0,0.66807694]
[1741462293178,0.42645601,86400.0,86399.0,0.76069644]
[1741462293581,0.42645601,86400.0,86399.0,0.66707694]
[1741462293779,0.42645601,86400.0,86399.0,0.39149455]
[1741462293980,0.42645601,86400.0,86399.0,0.49989455]
[1741462294181,0.42645601,86400.0,86399.0,0.61049455]
[1741462294777,0.42649601,86400.0,86399.0,0.70311405]
[1741462294983,0.33387751,86400.0,86399.0,0.70311405]
[1741462295188,0.42649601,86400.0,86399.0,0.70311405]
[1741462295387,0.4206432,86400.0,86399.0,0.70311405]
[1741462295581,0.4206432,86400.0,86399.0,0.61049455]
[1741462295886,0.4207232,86400.0,86399.0,0.61049455]
[1741462297078,0.4265266,86400.0,86399.0,0.61049455]
[1741462299177,0.4265266,86400.0,86399.0,0.70311405]
[1741462299382,0.4265266,86400.0,86399.0,0.71499455]
[1741462300288,0.4265266,86400.0,86399.0,0.61049455]
[1741462300586,0.5408266,86400.0,86399.0,0.61049455]
[1741462302187,0.5408266,86400.0,86399.0,0.39149455]
[1741462302689,0.5408666,86400.0,86399.0,0.39149455]
[1741462303789,0.5409466,86400.0,86399.0,0.39149455]
[1741462305791,0.5351432,86400.0,86399.0,0.39149455]
[1741462306185,0.5351432,86400.0,86399.0,0.03069455]
[1741462306387,0.0926195,86399.0,86398.0,0.27558239]
[1741462306581,0.0926195,86399.0,86398.0,0.20683207]
[1741462306582,0.0953242,86399.0,86398.0,0.20683207]
[1741462306784,0.3131242,86399.0,86398.0,0.20683207]
[1741462306989,0.0027047,86399.0,86398.0,0.54850446]
[1741462307288,0.0027047,86399.0,86398.0,0.65290446]
[1741462307481,0.0953242,86399.0,86398.0,0.65290446]
[1741462307887,0.0953242,86399.0,86398.0,0.56028386]
[1741462308096,0.2062242,86399.0,86398.0,0.56028386]
[1741462308296,0.2062242,86399.0,86398.0,0.65290446]
[1741462308695,0.2063042,86399.0,86398.0,0.56028386]
[1741462309886,0.2063042,86399.0,86398.0,0.62903418]
[1741462312896,0.0954042,86399.0,86398.0,0.62903418]
[1741462313399,0.0954042,86399.0,86398.0,0.35345179]
[1741462314597,0.2043042,86399.0,86398.0,0.35345179]
[1741462314798,0.3174442,86399.0,86398.0,0.35345179]
[1741462314999,0.3174442,86399.0,86398.0,0.24905179]
[1741462315794,0.3174842,86399.0,86398.0,0.24905179]
[1741462316000,0.3232905,86399.0,86398.0,0.24905179]
[1741462316194,0.3232905,86399.0,86398.0,0.03055179]
[1741462316395,0.230671,86399.0,86397.0,0.63638239]
[1741462316600,0.0953253,86398.0,86397.0,0.6669999]
[1741462317097,0.3124253,86398.0,86397.0,0.6669999]
[1741462317495,0.3182316,86398.0,86397.0,0.6669999]
[1741462317696,0.3183116,86398.0,86397.0,0.59812873]
[1741462319696,0.3183516,86398.0,86397.0,0.59812873]
[1741462320602,0.3184316,86398.0,86397.0,0.59812873]
[1741462322506,0.3184316,86398.0,86397.0,0.23732873]
[1741462325501,0.3184316,86398.0,86393.0,0.3219]
[1741462325707,0.0926249,86394.0,86393.0,0.3219]
[1741462326805,0.3163296,86394.0,86393.0,0.3219]
[1741462327206,0.3163296,86394.0,86393.0,0.3229]
[1741462327401,0.3163296,86394.0,86393.0,0.34980696]
[1741462328800,0.0953296,86394.0,86393.0,0.34980696]
[1741462329302,0.0027047,86394.0,86393.0,0.34980696]
[1741462329506,0.0953296,86394.0,86393.0,0.34980696]
[1741462329700,0.0953296,86394.0,86393.0,0.35080696]
[1741462330306,0.0953296,86394.0,86393.0,0.35180696]
[1741462330503,0.1988296,86394.0,86393.0,0.35180696]
[1741462330805,0.1989096,86394.0,86393.0,0.35180696]
[1741462331206,0.0954096,86394.0,86393.0,0.35180696]
[1741462331407,0.0954096,86394.0,86393.0,0.35280696]
[1741462331608,0.0954496,86394.0,86393.0,0.35280696]
[1741462332203,0.0954496,86394.0,86393.0,0.35080696]
[1741462332401,0.0954496,86394.0,86393.0,0.35180696]
[1741462332900,0.0955296,86394.0,86393.0,0.35180696]
[1741462333501,0.0955296,86394.0,86393.0,0.35080696]
[1741462333706,0.0955296,86394.0,86393.0,0.34980696]
[1741462333907,0.0955296,86394.0,86393.0,0.35080696]
[1741462335311,0.0955296,86394.0,86393.0,0.44343296]
[1741462336010,0.0955296,86394.0,86393.0,0.35080696]
[1741462338812,0.0955696,86394.0,86393.0,0.35080696]
[1741462339013,0.3183696,86394.0,86393.0,0.35080696]
[1741462339710,0.3184496,86394.0,86393.0,0.02890696]
[1741462340106,0.3184496,86394.0,86393.0,0.13360696]
[1741462340311,0.3184496,86394.0,86393.0,0.24440696]
[1741462340512,0.3184496,86394.0,86393.0,0.60520696]
[1741462340713,0.3184896,86394.0,86393.0,0.60520696]
[1741462341607,0.3185696,86394.0,86393.0,0.60520696]
[1741462343217,0.3185696,86394.0,86393.0,0.24440696]
[1741462343425,0.3185696,86394.0,86393.0,0.60520696]
[1741462345522,0.3185696,86394.0,86393.0,0.71540696]
[1741462346822,0.2059696,86394.0,86393.0,0.71540696]
[1741462348018,0.3172696,86394.0,86393.0,0.71540696]
[1741462351812,0.0957696,86394.0,86393.0,0.71540696]
[1741462352011,0.0031447,86394.0,86393.0,0.80803296]
[1741462352215,0.0957696,86394.0,86393.0,0.71540696]
[1741462352416,0.2078696,86394.0,86393.0,0.71540696]
[1741462352615,0.2074296,86394.0,86393.0,0.71540696]
[1741462353727,0.2075096,86394.0,86393.0,0.71540696]
[1741462354521,0.2075096,86394.0,86393.0,0.99098935]
[1741462354718,0.2075096,86394.0,86393.0,0.99198935]
[1741462355323,0.2075096,86394.0,86393.0,0.98998935]
[1741462355522,0.2075096,86394.0,86393.0,0.99098935]
[1741462356629,0.3214896,86394.0,86393.0,0.66528935]
[1741462357732,0.3215296,86394.0,86393.0,0.38970696]
[1741462358621,0.3216096,86394.0,86393.0,0.49850696]
[1741462359030,0.3216096,86394.0,86393.0,0.38970696]
[1741462359625,0.2077496,86394.0,86393.0,0.61100696]
[1741462360726,0.2078296,86394.0,86393.0,0.61100696]
[1741462362434,0.2078296,86394.0,86393.0,0.25020696]
[1741462362627,0.2078296,86394.0,86393.0,0.61100696]
[1741462363727,0.2074296,86394.0,86393.0,0.61100696]
[1741462364434,0.2074296,86394.0,86393.0,0.5841]
[1741462364735,0.2075096,86394.0,86393.0,0.5841]
[1741462365034,0.2075096,86394.0,86393.0,0.61094981]
[1741462368631,0.2075096,86394.0,86393.0,0.2233]
[1741462368829,0.2075096,86394.0,86393.0,0.002]
[1741462369228,0.2075096,86394.0,86393.0,0.2175]
[1741462369837,0.2075096,86394.0,86393.0,0.24440018]
[1741462373941,0.0954096,86394.0,86393.0,0.24440018]
[1741462374135,0.2064096,86394.0,86393.0,0.24440018]
[1741462374445,0.3186096,86394.0,86393.0,0.24440018]
[1741462381062,0.3186096,86394.0,86393.0,0.2175]
[1741462381259,0.4290096,86394.0,86393.0,0.2175]
[1741462381653,0.4290496,86394.0,86393.0,0.2175]
[1741462382663,0.4290896,86394.0,86393.0,0.2175]
[1741462383054,0.4290896,86394.0,86393.0,0.2444607]
[1741462383464,0.4290896,86394.0,86393.0,0.2175]
[1741462383658,0.4291696,86394.0,86393.0,0.2175]
[1741462383859,0.3187696,86394.0,86393.0,0.24149533]
[1741462384453,0.3187696,86394.0,86393.0,0.2175]
[1741462388068,0.3187696,86394.0,86393.0,0.1053]
[1741462388767,0.3188496,86394.0,86393.0,0.1053]
[1741462389665,0.3189296,86394.0,86393.0,0.1053]
[1741462393867,0.3189296,86394.0,86393.0,0.002]
[1741462394560,0.3189296,86394.0,86391.0,0.2172]
[1741462394561,0.0926281,86391.0,86390.0,0.27582957]
[1741462394764,0.0926281,86391.0,86367.0,0.77984]
[1741462394765,0.0926346,86385.0,86367.0,0.00164]
[1741462394966,0.0926453,86375.0,86369.0,0.11653521]
[1741462395165,0.0926453,86375.0,86372.0,0.0926482]
[1741462395368,0.0926453,86375.0,86370.0,0.2035503]
[1741462395563,0.0926453,86375.0,86371.0,0.092649]
[1741462395773,0.09539,86375.0,86371.0,0.1105]
[1741462396069,0.09539,86375.0,86372.0,0.1113]
[1741462396274,0.0926474,86373.0,86372.0,0.1113]
[1741462396763,0.0954321,86373.0,86372.0,0.1113]
[1741462397274,0.2030321,86373.0,86372.0,0.1113]
[1741462397671,0.3096321,86373.0,86372.0,0.1113]
[1741462398061,0.3106321,86373.0,86372.0,0.1113]
[1741462398467,0.2219847,86373.0,86369.0,0.00883521]
[1741462398668,0.0926517,86369.0,86368.0,0.3608]
[1741462398866,0.0926517,86369.0,86367.0,0.2182]
[1741462398867,0.0027047,86369.0,86367.0,0.2182]
[1741462399179,0.0926539,86367.0,86366.0,0.00906087]
[1741462399366,0.1710139,86367.0,86366.0,0.00017367]
[1741462399573,0.3808139,86367.0,86366.0,0.00017367]
[1741462399870,0.3835586,86367.0,86366.0,0.00017367]
[1741462400273,0.3835586,86367.0,86366.0,0.21837367]
[1741462400667,0.40747946,86367.0,86366.0,0.21837367]
[1741462401574,0.41147946,86367.0,86366.0,0.21937367]
[1741462402371,0.41147946,86367.0,86366.0,0.11117367]
[1741462402779,0.3876386,86367.0,86366.0,0.00117367]
[1741462403781,0.3875186,86367.0,86366.0,0.21307367]
[1741462403977,0.1777186,86367.0,86366.0,0.21307367]
[1741462404274,0.1787186,86367.0,86366.0,0.21207367]
[1741462404473,0.1787186,86367.0,86366.0,0.22848282]
[1741462404867,0.3838186,86367.0,86366.0,0.22848282]
[1741462405677,0.3838986,86367.0,86366.0,0.22848282]
[1741462405880,0.2050386,86367.0,86366.0,0.22848282]
[1741462406671,0.1004386,86367.0,86366.0,0.22848282]
[1741462407171,0.0994386,86367.0,86366.0,0.22848282]
[1741462407780,0.0993586,86367.0,86366.0,0.22848282]
[1741462408173,0.0993586,86367.0,86366.0,0.2429839]
[1741462408973,0.0983586,86367.0,86366.0,0.2429839]
[1741462409173,0.0983586,86367.0,86366.0,0.24330527]
[1741462409586,0.0983586,86367.0,86366.0,0.27025249]
[1741462409881,0.0984386,86367.0,86366.0,0.27025249]
[1741462410081,0.0954386,86367.0,86366.0,0.27025249]
[1741462411678,0.0964386,86367.0,86366.0,0.27233593]
[1741462412073,0.0964386,86367.0,86366.0,0.29668308]
[1741462412581,0.2036386,86367.0,86366.0,0.29668308]
[1741462412770,0.3071786,86367.0,86366.0,0.29668308]
[1741462413885,0.3072586,86367.0,86366.0,0.29668308]
[1741462414186,0.3072586,86367.0,86366.0,0.31457862]
[1741462414485,0.3072586,86367.0,86366.0,0.29668308]
[1741462414688,0.3072586,86367.0,86366.0,0.31457862]
[1741462415386,0.3072586,86367.0,86366.0,0.31497845]
[1741462416287,0.3072586,86367.0,86366.0,0.29708283]
[1741462416679,0.2037586,86367.0,86366.0,0.33328683]
[1741462417283,0.2037586,86367.0,86366.0,0.33419466]
[1741462417481,0.3048586,86367.0,86366.0,0.33419466]
[1741462417786,0.3048986,86367.0,86366.0,0.33419466]
[1741462418082,0.38493002,86367.0,86366.0,0.33419466]
[1741462418679,0.38501002,86367.0,86366.0,0.33419466]
[1741462419684,0.38505002,86367.0,86366.0,0.22659466]
[1741462420587,0.38405002,86367.0,86366.0,0.22659466]
[1741462420779,0.38413002,86367.0,86366.0,0.22659466]
[1741462420985,0.27803002,86367.0,86366.0,0.22659466]
[1741462421495,0.27803002,86367.0,86366.0,0.33109466]
[1741462421789,0.07029002,86367.0,86366.0,0.33109466]
[1741462422177,0.07029002,86367.0,86366.0,0.38177937]
[1741462422784,0.04422377,86367.0,86366.0,0.41422992]
[1741462423285,0.0926539,86367.0,86366.0,0.41422992]
[1741462423586,0.0926539,86367.0,86366.0,0.41216246]
[1741462423779,0.0927339,86367.0,86366.0,0.41216246]
[1741462423984,0.0926411,86379.0,86366.0,0.46284553]
[1741462424182,0.13884656,86386.0,86380.0,0.0926399]
[1741462424383,0.13884656,86386.0,86380.0,0.22659573]
[1741462424384,0.0534138,86381.0,86380.0,0.22659573]
[1741462424887,0.0534138,86381.0,86380.0,0.31406121]
[1741462425092,0.0534138,86381.0,86380.0,0.53286121]
[1741462425283,0.17321747,86392.0,86385.0,0.0926346]
[1741462425483,0.16478771,86392.0,86391.0,0.4534281]
[1741462425681,0.16478771,86392.0,86391.0,0.55117838]
[1741462426193,4e-05,86394.0,86393.0,0.092626]
[1741462426391,4e-05,86394.0,86393.0,0.13969321]
[1741462426888,0.0927449,86394.0,86393.0,0.37606133]
[1741462427082,0.00012,86394.0,86393.0,0.41490956]
[1741462427892,0.00012,86394.0,86393.0,0.39056241]
[1741462428501,0.00012,86394.0,86393.0,0.29793641]
[1741462428687,0.0927449,86394.0,86393.0,0.27446829]
[1741462429083,0.2990449,86394.0,86393.0,0.27446829]
[1741462429693,0.2065,86394.0,86393.0,0.36709429]
[1741462429886,0.2991249,86394.0,86393.0,0.27446829]
[1741462430483,0.2991249,86394.0,86393.0,0.29890902]
[1741462430684,0.2992049,86394.0,86393.0,0.33488326]
[1741462431985,0.2992049,86394.0,86393.0,0.3527364]
[1741462432994,0.2992049,86394.0,86393.0,0.33488326]
[1741462433394,0.2992049,86394.0,86393.0,0.12198326]
[1741462433695,0.2992049,86394.0,86393.0,0.08600902]
[1741462434591,0.4042049,86394.0,86393.0,0.08600902]
[1741462434796,0.4042449,86394.0,86393.0,0.08600902]
[1741462435283,0.4042449,86394.0,86393.0,0.08330112]
[1741462436591,0.0926335,86386.0,86385.0,0.00017367]
[1741462436799,0.1745535,86386.0,86385.0,0.00017367]
[1741462437288,0.3788535,86386.0,86385.0,0.00017367]
[1741462437689,0.3789335,86386.0,86385.0,0.00017367]
[1741462439496,0.3789335,86386.0,86385.0,0.00117367]
[1741462440393,0.3789335,86386.0,86385.0,0.00017367]
[1741462440586,0.3788535,86386.0,86385.0,0.00017367]
[1741462441387,0.3788535,86386.0,86385.0,0.00117367]
[1741462441584,0.2970135,86386.0,86385.0,0.00117367]
[1741462441796,0.3787335,86386.0,86385.0,0.00117367]
[1741462442902,0.0926442,86376.0,86375.0,0.00173637]
[1741462443793,0.2967442,86376.0,86375.0,0.00173637]
[1741462443990,0.20414,86376.0,86372.0,0.2123]
[1741462444198,0.1389704,86375.0,86374.0,0.0926453]
[1741462444497,0.0926474,86373.0,86372.0,0.0463242]
[1741462444693,0.0926485,86372.0,86367.0,0.12763189]
[1741462445704,0.0927285,86372.0,86367.0,0.12763189]
[1741462446200,0.0927285,86372.0,86370.0,0.01787629]
[1741462446393,0.2952285,86372.0,86370.0,0.01787629]
[1741462446588,0.2952685,86372.0,86371.0,0.38883326]
[1741462446797,0.2952685,86372.0,86371.0,0.41329798]
[1741462447590,0.2953485,86372.0,86371.0,0.41329798]
[1741462447795,0.2973485,86372.0,86371.0,0.41329798]
[1741462448105,0.2973485,86372.0,86371.0,0.38883326]
[1741462448699,0.0926528,86368.0,86367.0,0.10407367]
[1741462449000,0.0926528,86368.0,86367.0,0.14785508]
[1741462449804,0.1988528,86368.0,86367.0,0.12091267]
[1741462450004,0.1998528,86368.0,86367.0,0.13563681]
[1741462450602,0.1998928,86368.0,86367.0,0.13563681]
[1741462450903,0.1999328,86368.0,86367.0,0.13563681]
[1741462455300,0.1999328,86368.0,86367.0,0.03173681]
[1741462455706,0.1999728,86368.0,86367.0,0.03173681]
[1741462456997,0.2000528,86368.0,86367.0,0.13023681]
[1741462457899,0.2000528,86368.0,86367.0,0.15719559]
[1741462459004,0.0938528,86368.0,86367.0,0.1578876]
[1741462459203,0.0938528,86368.0,86367.0,0.1821159]
[1741462459603,0.0936528,86368.0,86367.0,0.1821159]
[1741462460709,0.0937328,86368.0,86367.0,0.1578876]
[1741462461406,0.0937328,86368.0,86367.0,0.2619876]
[1741462464808,0.06766597,86368.0,86367.0,0.28604553]
[1741462465009,0.06766597,86368.0,86367.0,0.2586672]
[1741462465799,0.06766597,86368.0,86367.0,0.23460927]
[1741462466002,0.06766597,86368.0,86367.0,0.26186538]
[1741462467612,0.06766597,86368.0,86367.0,0.2859567]
[1741462468413,0.06766597,86368.0,86367.0,0.3786106]
[1741462468607,0.06758597,86368.0,86367.0,0.35451928]
[1741462469406,0.06658597,86368.0,86367.0,0.35451928]
[1741462469602,0.06666597,86368.0,86367.0,0.35451928]
[1741462469998,4e-05,86374.0,86367.0,0.35451928]
[1741462470303,0.09445049,86386.0,86385.0,0.0926346]
[1741462470502,0.09445049,86386.0,86385.0,0.49780217]
[1741462470702,0.00173699,86386.0,86385.0,0.49780217]
[1741462471000,0.00173699,86386.0,86385.0,0.6600346]
[1741462471311,0.00173699,86386.0,86385.0,0.71868163]
[1741462471506,0.00173699,86386.0,86385.0,0.74023337]
[1741462471910,4e-05,86387.0,86385.0,0.74023337]
[1741462472111,4e-05,86392.0,86391.0,0.0926281]
[1741462472317,4e-05,86392.0,86391.0,0.13655099]
[1741462472707,0.0926165,86402.0,86399.0,0.0926195]
[1741462473013,4e-05,86401.0,86399.0,0.49734239]
[1741462473411,0.1926185,86400.0,86399.0,0.41944703]
[1741462473616,0.1926985,86400.0,86399.0,0.41944703]
[1741462473914,0.1926985,86400.0,86399.0,0.51206653]
[1741462474115,0.1926985,86400.0,86399.0,0.46814364]
[1741462474311,0.10008,86400.0,86399.0,0.6614195]
[1741462475213,0.10008,86400.0,86399.0,0.58529278]